fUSD/lending_fUSD_20260128
["ID","MTS","AMOUNT","RATE_DAILY","PERIOD"]
[403861696,1769607040167,-163.21,0.00015651,2]
[403861697,1769607040176,-700.0,0.000158,5]
[403861699,1769607040185,-1322.0,0.00015833,2]
[403861701,1769607040194,-311.46,0.00015891,2]
[403861703,1769607040203,-599.29791358,0.000159,2]
[403861704,1769607040212,-1100.0,0.000159,5]
[403861705,1769607040228,-371.95,0.00015908,2]
[403861706,1769607040238,-245.38,0.00015922,2]
[403861707,1769607040247,-652.99854233,0.0001596,2]
[403861708,1769607040257,-1276.98505082,0.0001599,2]
[403861709,1769607040266,-151.0,0.00015997,2]
[403861710,1769607040275,-224.32,0.00016,2]
[403861711,1769607040284,-842082.17568567,0.00016,4]
[403861712,1769607040293,-15772.28,0.00016047,2]
[403861713,1769607040303,-23121.5770316,0.00016085,2]
[403861714,1769607040312,-166.66,0.00016105,2]
[403861715,1769607040321,-1322.0,0.00016107,2]
[403861716,1769607040331,-777.68,0.00016116,2]
[403861717,1769607040340,-433.0,0.00016149,2]
[403861718,1769607040350,-5000.00908616,0.000162,5]
[403861719,1769607040359,-2126.41844015,0.0001622,2]
[403861720,1769607040368,-500.0,0.00016373,2]
[403861721,1769607040377,-500.0,0.00016373,2]
[403861723,1769607040387,-500.0,0.00016373,2]
[403861724,1769607040396,-500.0,0.00016373,2]
[403861725,1769607040406,-500.0,0.00016373,2]
[403861726,1769607040418,-500.0,0.00016373,2]
[403861727,1769607040429,-502.29619989,0.00016373,2]
[403861728,1769607040439,-500.0,0.00016373,2]
[403861729,1769607040449,-500.0,0.00016373,2]
[403861730,1769607040458,-500.0,0.00016373,2]
[403861731,1769607040469,-500.0,0.00016373,2]
[403861732,1769607040478,-500.0,0.00016373,2]
[403861733,1769607040488,-500.0,0.00016373,2]
[403861734,1769607040498,-500.0,0.00016373,2]
[403861735,1769607040507,-500.0,0.00016373,2]
[403861736,1769607040517,-166.17288691,0.00016373,2]
[403861737,1769607040527,-500.0,0.00016373,2]
[403861738,1769607040538,-500.0,0.00016373,2]
[403861739,1769607040548,-500.0,0.00016373,2]
[403861740,1769607040558,-500.0,0.00016373,2]
[403861741,1769607040568,-500.0,0.00016373,2]
[403861742,1769607040580,-500.61015295,0.00016373,2]
[403861743,1769607040591,-160.17647728,0.00016373,2]
[403861744,1769607040603,-425.35059337,0.00016373,2]
[403861745,1769607040613,-500.0,0.00016373,2]
[403861746,1769607040627,-500.45700861,0.00016373,2]
[403861747,1769607040636,-500.0,0.00016373,2]
[403861748,1769607040645,-500.0,0.00016373,2]
[403861749,1769607040654,-500.0,0.00016373,2]
[403861750,1769607040666,-500.0,0.00016373,2]
[403861751,1769607040676,-500.0,0.00016373,2]
[403861752,1769607040686,-162.9653214,0.00016373,2]
[403861753,1769607040697,-500.0,0.00016373,2]
[403861754,1769607040707,-500.0,0.00016373,2]
[403861755,1769607040718,-500.85593286,0.00016373,2]
[403861756,1769607040727,-500.0,0.00016373,2]
[403861757,1769607040736,-500.0,0.00016373,2]
[403861758,1769607040745,-500.0,0.00016373,2]
[403861759,1769607040754,-500.0,0.00016373,2]
[403861760,1769607040763,-500.0,0.00016373,2]
[403861761,1769607040772,-500.0,0.00016373,2]
[403861762,1769607040781,-500.0,0.00016374,2]
[403861763,1769607040791,-1322.0,0.00016381,2]
[403861764,1769607040800,-288.44972209,0.00016438,2]
[403861765,1769607040809,-500.0,0.00016438,2]
[403861766,1769607040819,-500.0,0.00016438,2]
[403861767,1769607040828,-268.26014832,0.00016438,2]
[403861768,1769607040837,-500.0,0.00016438,2]
[403861769,1769607040846,-500.0,0.00016438,2]
[403861770,1769607040855,-500.0,0.00016438,2]
[403861771,1769607040864,-500.0,0.00016438,2]
[403861772,1769607040873,-500.0,0.00016438,2]
[403861773,1769607040883,-500.0,0.00016438,2]
[403861774,1769607040892,-236.32518183,0.00016438,2]
[403861775,1769607040901,-227.08,0.00016438,2]
[403861776,1769607040910,-1224.23871987,0.00016444,2]
[403861777,1769607040919,-14250.96396793,0.000165,2]
[403861778,1769607040928,-23121.5770316,0.00016539,2]
[403861779,1769607040937,-500.0,0.00016648,2]
[403861780,1769607040947,-1322.0,0.00016655,2]
[403861781,1769607040956,-1000.0,0.00016658,2]
[403861782,1769607040965,-2351.0,0.00016715,2]
[403861783,1769607040974,-150.00265662,0.00016794,2]
[403861784,1769607040984,-1500.0,0.000169,6]
[403861785,1769607040993,-1001.11024626,0.00016921,2]
[403861786,1769607041002,-1000.0,0.00016921,2]
[403861787,1769607041011,-505.52548547,0.00016921,2]
[403861788,1769607041020,-1000.0,0.00016921,2]
[403861789,1769607041030,-1000.0,0.00016921,2]
[403861790,1769607041039,-1000.0,0.00016921,2]
[403861791,1769607041048,-1000.0,0.00016921,2]
[403861792,1769607041057,-1000.0,0.00016921,2]
[403861793,1769607041066,-1000.0,0.00016921,2]
[403861794,1769607041075,-501.78864122,0.00016921,2]
[403861795,1769607041085,-1000.0,0.00016921,2]
[403861796,1769607041094,-1000.0,0.00016921,2]
[403861797,1769607041103,-1000.0,0.00016921,2]
[403861798,1769607041112,-1000.0,0.00016921,2]
[403861799,1769607041121,-1000.0,0.00016921,2]
[403861800,1769607041131,-401.29561037,0.00016921,2]
[403861801,1769607041140,-501.35548304,0.00016921,2]
[403861802,1769607041150,-1000.0,0.00016921,2]
[403861803,1769607041159,-156.08135925,0.00016921,2]
[403861804,1769607041168,-1000.0,0.00016921,2]
[403861805,1769607041180,-1000.0,0.00016921,2]
[403861806,1769607041192,-1000.0,0.00016921,2]
[403861807,1769607041205,-1000.0,0.00016921,2]
[403861808,1769607041217,-947.0136646,0.00016921,2]
[403861809,1769607041230,-1000.0,0.00016921,2]
[403861810,1769607041241,-500.0,0.00016922,2]
[403861811,1769607041251,-1322.0,0.00016929,2]
[403861812,1769607041262,-23121.5770316,0.00016992,2]
[403861813,1769607041275,-151.0,0.00016997,2]
[403861814,1769607041287,-300.0,0.00016999,2]
[403861815,1769607041298,-666.0,0.00016999,2]
[403861816,1769607041310,-406838.00810396,0.00017,2]
[403861817,1769607041322,-500.0,0.00017196,2]
[403861818,1769607041335,-1322.0,0.00017203,2]
[403861819,1769607041347,-4046.5,0.00017212,2]
[403861820,1769607041358,-1336.0,0.00017328,2]
[403861821,1769607041369,-1336.0,0.00017398,2]
[403861822,1769607041380,-1336.0,0.00017403,2]
[403861823,1769607041391,-700.20467342,0.00017445,2]
[403861824,1769607041401,-23121.5770316,0.00017446,2]
[403861825,1769607041412,-736.0,0.00017447,2]
[403861826,1769607041424,-1500.0,0.00017468,2]
[403861827,1769607041436,-1506.04611784,0.00017468,2]
[403861828,1769607041447,-1500.0,0.00017468,2]
[403861829,1769607041459,-1500.0,0.00017468,2]
[403861830,1769607041471,-1500.0,0.00017468,2]
[403861831,1769607041482,-348.0638206,0.00017468,2]
[403861832,1769607041494,-1500.0,0.00017468,2]
[403861833,1769607041506,-1500.0,0.00017468,2]
[403861834,1769607041518,-503.02067559,0.00017468,2]
[403861835,1769607041531,-1500.0,0.00017468,2]
[403861836,1769607041545,-1500.0,0.00017468,2]
[403861837,1769607041557,-1001.39520865,0.00017468,2]
[403861838,1769607041571,-932.41323937,0.00017468,2]
[403861839,1769607041586,-1518.6229257,0.00017468,2]
[403861840,1769607041599,-500.0,0.0001747,2]
[403861841,1769607041611,-1322.0,0.00017477,2]
[403861842,1769607041626,-500.0,0.00017478,2]
[403861843,1769607041642,-500.0,0.00017478,2]
[403861844,1769607041653,-1336.0,0.00017521,2]
[403861845,1769607041666,-1800.0,0.000176,6]
[403861846,1769607041678,-1336.0,0.00017616,2]
[403861847,1769607041690,-1336.0,0.00017693,2]
[403861848,1769607041702,-150.0,0.00017699,2]
[403861849,1769607041716,-150.0,0.00017699,2]
[403861850,1769607041730,-500.0,0.00017699,2]
[403861851,1769607041741,-500.0,0.00017699,2]
[403861852,1769607041752,-500.0,0.00017699,2]
[403861853,1769607041764,-500.0,0.00017699,2]
[403861854,1769607041775,-150.0,0.00017699,2]
[403861855,1769607041787,-150.0,0.00017699,2]
[403861856,1769607041797,-152.34395111,0.00017699,2]
[403861857,1769607041808,-500.0,0.00017699,2]
[403861858,1769607041818,-500.0,0.00017699,2]
[403861859,1769607041830,-500.0,0.00017699,2]
[403861860,1769607041840,-150.0,0.00017699,2]
[403861861,1769607041853,-150.0,0.00017699,2]
[403861862,1769607041866,-500.0,0.00017699,2]
[403861863,1769607041880,-500.0,0.00017699,2]
[403861864,1769607041891,-500.0,0.00017699,2]
[403861865,1769607041901,-165.64806475,0.00017699,2]
[403861866,1769607041911,-150.0,0.00017699,2]
[403861867,1769607041922,-150.0,0.00017699,2]
[403861868,1769607041933,-150.0,0.00017699,2]
[403861869,1769607041944,-150.0,0.00017699,2]
[403861870,1769607041956,-150.0,0.00017699,2]
[403861871,1769607041969,-150.0,0.00017699,2]
[403861872,1769607041981,-150.0,0.00017699,2]
[403861873,1769607041993,-198.56508977,0.00017699,2]
[403861874,1769607042004,-500.0,0.00017699,2]
[403861875,1769607042015,-150.0,0.00017699,2]
[403861876,1769607042026,-300.0,0.000177,6]
[403861877,1769607042037,-1336.0,0.00017708,2]
[403861878,1769607042048,-500.0,0.00017744,2]
[403861879,1769607042059,-1322.0,0.00017751,2]
[403861880,1769607042070,-215.96483373,0.00017754,2]
[403861881,1769607042081,-500.0,0.00017754,2]
[403861882,1769607042093,-500.0,0.00017754,2]
[403861883,1769607042105,-500.0,0.00017754,2]
[403861884,1769607042116,-500.0,0.00017754,2]
[403861885,1769607042127,-150.0,0.00017754,2]
[403861886,1769607042138,-500.0,0.00017754,2]
[403861887,1769607042149,-500.0,0.00017754,2]
[403861888,1769607042159,-500.0,0.00017754,2]
[403861889,1769607042170,-150.0,0.00017754,2]
[403861890,1769607042181,-150.0,0.00017754,2]
[403861891,1769607042192,-500.0,0.00017754,2]
[403861892,1769607042202,-500.0,0.00017754,2]
[403861893,1769607042213,-397.34853095,0.00017754,2]
[403861894,1769607042223,-150.0,0.00017754,2]
[403861895,1769607042234,-150.0,0.00017754,2]
[403861896,1769607042245,-150.0,0.00017754,2]
[403861897,1769607042256,-500.0,0.00017754,2]
[403861898,1769607042267,-150.0,0.00017754,2]
[403861899,1769607042278,-1336.0,0.00017782,2]
[403861900,1769607042301,-1336.0,0.00017783,2]
[403861901,1769607042312,-300.0,0.000178,6]
[403861902,1769607042323,-500.0,0.00017808,2]
[403861903,1769607042335,-500.0,0.00017809,2]
[403861904,1769607042347,-500.0,0.00017809,2]
[403861905,1769607042359,-500.0,0.00017809,2]
[403861906,1769607042370,-500.0,0.00017809,2]
[403861907,1769607042382,-150.0,0.00017809,2]
[403861908,1769607042393,-358.01164626,0.00017809,2]
[403861909,1769607042405,-552.18185141,0.00017809,2]
[403861910,1769607042416,-500.0,0.00017809,2]
[403861911,1769607042427,-150.0,0.00017809,2]
[403861912,1769607042438,-150.0,0.00017809,2]
[403861913,1769607042450,-500.0,0.00017809,2]
[403861914,1769607042461,-275.0,0.00017809,2]
[403861915,1769607042473,-250.0,0.00017809,2]
[403861916,1769607042484,-150.0,0.00017809,2]
[403861917,1769607042495,-150.0,0.00017809,2]
[403861918,1769607042507,-411.30933942,0.00017809,2]
[403861919,1769607042518,-150.0,0.00017809,2]
[403861920,1769607042529,-1336.0,0.00017811,2]
[403861921,1769607042541,-500.0,0.00017863,2]
[403861922,1769607042553,-500.0,0.00017863,2]
[403861923,1769607042564,-500.0,0.00017863,2]
[403861924,1769607042574,-500.0,0.00017863,2]
[403861925,1769607042585,-500.0,0.00017863,2]
[403861926,1769607042596,-150.0,0.00017863,2]
[403861927,1769607042607,-150.0,0.00017863,2]
[403861928,1769607042618,-500.0,0.00017863,2]
[403861929,1769607042632,-150.0,0.00017863,2]
[403861930,1769607042643,-500.0,0.00017863,2]
[403861931,1769607042653,-150.0,0.00017863,2]
[403861932,1769607042665,-150.0,0.00017863,2]
[403861933,1769607042676,-150.0,0.00017863,2]
[403861934,1769607042686,-1336.0,0.00017876,2]
[403861935,1769607042695,-1336.0,0.0001789,2]
[403861936,1769607042704,-23121.5770316,0.000179,2]
[403861937,1769607042715,-599.29791358,0.000179,2]
[403861938,1769607042725,-160.71079692,0.000179,2]
[403861939,1769607042738,-8173.82373327,0.000179,2]
[403861940,1769607042750,-300.0,0.000179,6]
[403861941,1769607042762,-152.15367679,0.000179,3]
[403861942,1769607042773,-500.0,0.00017918,2]
[403861943,1769607042783,-500.0,0.00017918,2]
[403861944,1769607042796,-500.0,0.00017918,2]
[403861945,1769607042806,-500.0,0.00017918,2]
[403861946,1769607042817,-162.1375932,0.00017918,2]
[403861947,1769607042828,-290.22964713,0.00017918,2]
[403861948,1769607042841,-500.0,0.00017918,2]
[403861949,1769607042854,-150.0,0.00017918,2]
[403861950,1769607042865,-500.0,0.00017918,2]
[403861951,1769607042876,-250.0,0.00017918,2]
[403861952,1769607042888,-250.0,0.00017918,2]
[403861953,1769607042900,-150.0,0.00017918,2]
[403861954,1769607042912,-1336.0,0.00017966,2]
[403861955,1769607042924,-500.0,0.00017972,2]
[403861956,1769607042934,-155.16925111,0.00017973,2]
[403861957,1769607042945,-500.0,0.00017973,2]
[403861958,1769607042955,-500.0,0.00017973,2]
[403861959,1769607042966,-334.49090466,0.00017973,2]
[403861960,1769607042977,-250.0,0.00017973,2]
[403861961,1769607042988,-500.0,0.00017973,2]
[403861962,1769607043000,-500.0,0.00017973,2]
[403861963,1769607043012,-150.0,0.00017973,2]
[403861964,1769607043025,-11758.50605339,0.0001799,3]
[403861965,1769607043037,-28823.50216861,0.0001799,2]
[403861966,1769607043048,-1276.98505082,0.0001799,2]
[403861967,1769607043059,-1276.98505082,0.0001799,2]
[403861968,1769607043070,-151.0,0.00017997,2]
[403861969,1769607043081,-13998.35686924,0.00017999,2]
[403861970,1769607043094,-300.0,0.00017999,2]
[403861971,1769607043107,-666.0,0.00017999,2]
[403861972,1769607043118,-3744689.7510926,0.00018,2]
[403861973,1769607043137,-469.01023716,0.00018,2]
[403861974,1769607043155,-1542.02172142,0.00018,2]
[403861975,1769607043176,-423.81024343,0.00018,2]
[403861976,1769607043190,-9533.17266637,0.00018,2]
[403862067,1769607045631,-1563.61745328,0.00018,2]
[403862068,1769607045643,-1362.74,0.00018,2]
[403862069,1769607045666,-164700.23174696,0.00018,2]
[403862070,1769607045679,-3199.48917838,0.00018,2]
[403862071,1769607045690,-4000.0,0.00018,2]
[403862072,1769607045842,-481.57727047,0.000179,2]
[403862073,1769607045859,-475.7405451,0.000179,2]
[403862074,1769607045868,-223.53412597,0.00018,2]
[403862075,1769607045879,-4590072.27288003,0.00018,2]
[403862076,1769607045888,-189315.12467073,0.00018,2]
[403862077,1769607045898,-2068763.51269129,0.00018,2]
[403862078,1769607045909,-762.60566617,0.00018,2]
[403862079,1769607045927,-3336.62340853,0.00018,2]
[403862080,1769607045949,-51492.96222876,0.00018,2]
[403862081,1769607045961,-9283.008408,0.00018,2]
[403862082,1769607045975,-814.4570612,0.00018,2]
[403862083,1769607045989,-273.47278806,0.00018,2]
[403862084,1769607046005,-1064863.10850249,0.00018,2]
[403862085,1769607046015,-1191.25931111,0.00018,2]
[403862086,1769607046025,-151.0,0.00018,2]
[403862087,1769607046035,-506.0,0.00018,2]
[403862088,1769607046045,-151.0,0.00018,2]
[403862089,1769607046055,-151.0,0.00018,2]
[403862090,1769607046065,-151.0,0.00018,2]
[403862091,1769607046076,-151.0,0.00018,2]
[403862092,1769607046086,-151.0,0.00018,2]
[403862093,1769607046096,-151.0,0.00018,2]
[403862094,1769607046107,-151.0,0.00018,2]
[403862095,1769607046117,-649.740431,0.00018,2]
[403862096,1769607046127,-649.740431,0.00018,2]
[403862098,1769607046137,-151.0,0.00018,2]
[403862100,1769607046147,-649.740431,0.00018,2]
[403862101,1769607046157,-151.0,0.00018,2]
[403862102,1769607046167,-649.740431,0.00018,2]
[403862103,1769607046177,-151.0,0.00018,2]
[403862104,1769607046188,-649.740431,0.00018,2]
[403862106,1769607046198,-151.0,0.00018,2]
[403862108,1769607046207,-649.740431,0.00018,2]
[403862109,1769607046218,-151.0,0.00018,2]
[403862110,1769607046227,-649.740431,0.00018,2]
[403862111,1769607046237,-151.0,0.00018,2]
[403862112,1769607046247,-649.740431,0.00018,2]
[403862114,1769607046256,-1336.0,0.00018014,2]
[403862115,1769607046266,-503.29314635,0.00018016,2]
[403862116,1769607046275,-579.84922543,0.00018016,2]
[403862117,1769607046285,-2000.0,0.00018016,2]
[403862118,1769607046294,-500.0,0.00018016,2]
[403862119,1769607046304,-1508.89888309,0.00018016,2]
[403862120,1769607046314,-1007.46801581,0.00018016,2]
[403862121,1769607046323,-500.0,0.00018016,2]
[403862122,1769607046333,-2000.0,0.00018016,2]
[403862123,1769607046343,-500.0,0.00018018,2]
[403862124,1769607046352,-1322.00498439,0.00018025,2]
[403862125,1769607046363,-500.0,0.00018027,2]
[403862126,1769607046372,-500.0,0.00018028,2]
[403862127,1769607046382,-500.0,0.00018028,2]
[403862128,1769607046392,-1336.0,0.00018052,2]
[403862129,1769607046402,-868.22,0.00018066,2]
[403862130,1769607046412,-162.27706607,0.00018082,2]
[403862131,1769607046422,-300.0,0.00018082,2]
[403862132,1769607046431,-500.0,0.00018083,2]
[403862133,1769607046441,-500.0,0.00018083,2]
[403862134,1769607046450,-500.0,0.00018137,2]
[403862135,1769607046460,-500.0,0.00018137,2]
[403862136,1769607046470,-500.0,0.00018192,2]
[403862137,1769607046479,-500.0,0.00018192,2]
[403862138,1769607046488,-150.00265662,0.00018214,3]
[403862139,1769607046498,-500.0,0.00018247,2]
[403862140,1769607046507,-500.0,0.00018247,2]
[403862141,1769607046517,-250.0,0.00018256,2]
[403862142,1769607046526,-500.0,0.00018292,2]
[403862143,1769607046535,-500.0,0.00018302,2]
[403862144,1769607046545,-500.0,0.00018302,2]
[403862145,1769607046554,-868.22,0.0001834,2]
[403862146,1769607046564,-3515.81,0.00018356,2]
[403862147,1769607046573,-500.0,0.00018357,2]
[403862148,1769607046583,-500.0,0.00018357,2]
[403862149,1769607046593,-3292.0,0.00018387,2]
[403862150,1769607046603,-500.0,0.00018411,2]
[403862151,1769607046612,-500.0,0.00018411,2]
[403862152,1769607046623,-174.48261702,0.00018439,2]
[403862153,1769607046633,-761.21114176,0.00018439,2]
[403862154,1769607046645,-649.36910503,0.00018439,2]
[403862155,1769607046654,-1780.58246827,0.00018439,2]
[403862156,1769607046664,-716.25174016,0.0001846,2]
[403862157,1769607046675,-223.64368357,0.00018466,2]
[403862158,1769607046685,-439.8103178,0.00018466,2]
[403862159,1769607046694,-1000.0,0.00018508,2]
[403862160,1769607046704,-1029.56508935,0.00018564,2]
[403862161,1769607046715,-500.0,0.00018565,2]
[403862162,1769607046724,-868.22,0.00018614,2]
[403862163,1769607046734,-1336.0,0.00018691,2]
[403862164,1769607046830,-1336.0,0.00018722,2]
[403862165,1769607046840,-564.32158074,0.00018733,2]
[403862166,1769607046849,-1336.0,0.00018787,2]
[403862167,1769607046858,-1336.0,0.00018797,2]
[403862168,1769607046868,-500.0,0.00018839,2]
[403862169,1769607046877,-1336.0,0.00018846,2]
[403862170,1769607046887,-1336.0,0.0001886,2]
[403862171,1769607046896,-224.54492054,0.00018866,2]
[403862172,1769607046907,-1252.0,0.0001887,2]
[403862173,1769607046916,-1336.0,0.00018885,2]
[403862174,1769607046926,-868.22,0.00018888,2]
[403862175,1769607046937,-4214.42003513,0.000189,2]
[403862176,1769607046947,-158.7386143,0.0001891,2]
[403862177,1769607046957,-1336.0,0.00018956,2]
[403862178,1769607046967,-1336.0,0.00019024,2]
[403862179,1769607046976,-1336.0,0.00019048,2]
[403862180,1769607046986,-729.53567129,0.00019062,2]
[403862181,1769607046995,-200.0,0.00019082,2]
[403862182,1769607047005,-867.02,0.00019162,2]
[403862183,1769607047014,-243.713436,0.00019178,2]
[403862184,1769607047023,-243.713436,0.00019178,2]
[403862185,1769607047032,-243.713436,0.00019178,2]
[403862186,1769607047042,-243.713436,0.00019178,2]
[403862187,1769607047052,-243.713436,0.00019178,2]
[403862188,1769607047061,-243.713436,0.00019178,2]
[403862189,1769607047071,-243.713436,0.00019178,2]
[403862190,1769607047080,-243.713436,0.00019178,2]
[403862191,1769607047089,-151.0,0.00019178,2]
[403862192,1769607047099,-151.0,0.00019178,2]
[403862193,1769607047108,-151.0,0.00019178,2]
[403862194,1769607047118,-151.0,0.00019178,2]
[403862195,1769607047127,-4046.5,0.00019574,2]
[403862196,1769607047137,-150.00265662,0.00019634,7]
[403862197,1769607047146,-212.01,0.00019995,2]
[403862198,1769607047156,-1000.0,0.0002,7]
[403862199,1769607047165,-1278.35,0.00020145,2]
[403862200,1769607047175,-3573.68,0.00020145,2]
[403862201,1769607047185,-4609.0,0.00020225,2]
[403862202,1769607047194,-500.0,0.00020278,2]
[403862203,1769607047203,-1000.0,0.00020359,2]
[403862204,1769607047212,-487.62,0.00020377,2]
[403862205,1769607047222,-2129.0,0.0002039,2]
[403862206,1769607047231,-487.62,0.00020651,2]
[403862207,1769607047241,-487.62,0.00020925,2]
[403862208,1769607047250,-300.0,0.00020999,2]
[403862209,1769607047261,-666.0,0.00020999,2]
[403862210,1769607047270,-378.25,0.00021,7]
[403862211,1769607047281,-20000.0,0.00021,2]
[403862212,1769607047290,-806.93450251,0.00021,2]
[403862213,1769607047299,-1193.76869682,0.00021,2]
[403862214,1769607047310,-197.04144914,0.00021,2]
[403862215,1769607047319,-150.00265662,0.00021055,12]
[403862216,1769607047328,-212.44876164,0.00021133,2]
[403862217,1769607047338,-778.02286202,0.0002114,2]
[403862218,1769607047348,-487.62,0.00021199,2]
[403862219,1769607047357,-292.76,0.00021473,2]
[403862220,1769607047367,-57567.23947044,0.000215,2]
[403862221,1769607047376,-222.2638941,0.000215,2]
[403862222,1769607047386,-5000.0,0.00021918,2]
[403862223,1769607047395,-150.0,0.00021918,2]
[403862224,1769607047405,-500.0,0.00021918,2]
[403862225,1769607047414,-4046.5,0.00021937,2]
[403862226,1769607047424,-300.0,0.00021972,2]
[403862227,1769607047433,-500.0,0.00021973,2]
[403862228,1769607047443,-500.0,0.00021973,2]
[403862229,1769607047452,-500.97270712,0.00021973,2]
[403862230,1769607047463,-500.79595583,0.00021973,2]
[403862231,1769607047474,-500.46570167,0.00021973,2]
[403862232,1769607047483,-500.0,0.00021973,2]
[403862233,1769607047492,-500.30198217,0.00021973,2]
[403862234,1769607047502,-500.0,0.00021973,2]
[403862235,1769607047511,-161.84465629,0.00021973,2]
[403862236,1769607047520,-268.35638864,0.00021973,2]
[403862237,1769607047529,-500.0,0.00021973,2]
[403862238,1769607047539,-500.0,0.00021973,2]
[403862239,1769607047550,-161.40469099,0.00021973,2]
[403862240,1769607047559,-500.63567767,0.00021973,2]
[403862241,1769607047571,-500.0,0.00021973,2]
[403862242,1769607047580,-500.0,0.00021973,2]
[403862243,1769607047589,-500.0,0.00021973,2]
[403862244,1769607047599,-158.16850071,0.00021973,2]
[403862245,1769607047609,-161.06844262,0.00021973,2]
[403862246,1769607047618,-500.0,0.00021973,2]
[403862247,1769607047631,-500.0,0.00021973,2]
[403862248,1769607047641,-160.05102853,0.00021973,2]
[403862249,1769607047650,-500.48796641,0.00021973,2]
[403862250,1769607047660,-500.93909876,0.00021973,2]
[403862251,1769607047670,-500.7746919,0.00021973,2]
[403862252,1769607047679,-500.0,0.00021973,2]
[403862253,1769607047688,-250.07737695,0.00021973,2]
[403862254,1769607047698,-500.0,0.00021973,2]
[403862255,1769607047710,-500.12495376,0.00021973,2]
[403862256,1769607047719,-340.18884968,0.00021973,2]
[403862257,1769607047728,-208.70238568,0.00021973,2]
[403862258,1769607047738,-500.0,0.00021973,2]
[403862259,1769607047748,-500.36677544,0.00021973,2]
[403862260,1769607047759,-500.0,0.00021973,2]
[403862261,1769607047768,-333.38297548,0.00021973,2]
[403862262,1769607047777,-500.19574108,0.00021973,2]
[403862263,1769607047787,-500.83674471,0.00021973,2]
[403862264,1769607047796,-500.0,0.00021973,2]
[403862265,1769607047805,-208.25001781,0.00021973,2]
[403862266,1769607047814,-500.29215456,0.00021973,2]
[403862267,1769607047823,-500.0,0.00021973,2]
[403862268,1769607047833,-500.0,0.00021973,2]
[403862269,1769607047842,-500.0,0.00021973,2]
[403862270,1769607047851,-500.0,0.00021973,2]
[403862271,1769607047860,-500.0,0.00021973,2]
[403862272,1769607047868,-162.0162466,0.00021973,2]
[403862273,1769607047878,-500.56756303,0.00021973,2]
[403862274,1769607047887,-501.21016651,0.00021973,2]
[403862275,1769607047895,-500.0,0.00021973,2]
[403862276,1769607047904,-500.0,0.00021973,2]
[403862277,1769607047914,-162.57897641,0.00021973,2]
[403862278,1769607047923,-509.15554245,0.00021973,2]
[403862279,1769607047932,-500.0,0.00021973,2]
[403862280,1769607047942,-500.0,0.00021973,2]
[403862281,1769607047951,-500.0,0.00021973,2]
[403862282,1769607047960,-309.0940969,0.00021973,2]
[403862283,1769607047970,-500.0,0.00021973,2]
[403862284,1769607047979,-501.32593158,0.00021973,2]
[403862285,1769607047989,-284.26160818,0.00021973,2]
[403862286,1769607047998,-500.0,0.00021973,2]
[403862287,1769607048008,-160.74991688,0.00021973,2]
[403862288,1769607048018,-165.82745165,0.00021973,2]
[403862289,1769607048027,-169.6207379,0.00021973,2]
[403862290,1769607048037,-164.6729444,0.00021973,2]
[403862291,1769607048047,-500.13090625,0.00021973,2]
[403862292,1769607048057,-500.0,0.00021973,2]
[403862293,1769607048066,-500.64953164,0.00021973,2]
[403862294,1769607048076,-150.43514625,0.00021973,2]